[Event "EYCC 2017"]
[Site "Mamaia"]
[Date "2017.09.08"]
[Round "4"]
[White "Beydullayeva, Govhar"]
[Black "Esadze, Tamari"]
[Result "1-0"]
[ECO "D37"]
[WhiteElo "2164"]
[BlackElo "1863"]
[Annotator "NA"]
[PlyCount "93"]
[EventDate "2017.??.??"]
[EventType "swiss"]
[EventCountry "ROU"]
[SourceTitle "playchess.com"]
[Source "ChessBase"]
[SourceQuality "1"]
[TimeControl "40/5400+30:1800+30"]

1. Nf3 {[%emt 0:00:00]} d5 {[%emt 0:00:11]} 2. d4 {[%emt 0:00:00]} Nf6 {[%emt 0:00:08]} 3. c4 {[%emt 0:00:00]} e6 {[%emt 0:00:07]} 4. Nc3 {[%emt 0:00:00]} Be7 {[%emt 0:00:25]} 5. Bf4 {[%emt 0:00:04]} O-O {[%emt 0:02:44]} 6. e3 {[%emt 0:00:17]} Nbd7 {[%emt 0:01:22]} 7. Qc2 {[%emt 0:00:47]} dxc4 {[%emt 0:04:34]} 8. Bxc4 {[%emt 0:00:12]} a6 {[%emt 0:01:52]} 9. a4 {[%emt 0:11:43]} h6 {[%emt 0:12:06]} 10. e4 {[%emt 0:03:56]} Nb6 {[%emt 0:06:44]} 11. Bb3 {[%emt 0:03:18]} Nh7 {[%emt 0:11:21]} 12. Rd1 {[%emt 0:05:50]} c6 {[%emt 0:13:27]} 13. O-O {[%emt 0:01:00]} Ng5 {[%emt 0:04:06]} 14. Ne5 {[%emt 0:03:15]} Bd6 {[%emt 0:06:03]} 15. a5 {[%emt 0:03:34]} Bxe5 {[%emt 0:03:27]} 16. Bxe5 {[%emt 0:00:27]} Nd7 {[%emt 0:01:35]} 17. Bd6 {[%emt 0:04:23]} Re8 {[%emt 0:00:26]} 18. f4 {[%emt 0:00:47]} Nh7 {[%emt 0:01:24]} 19. Bb4 {[%emt 0:18:18]} Ndf6 {[%emt 0:07:46]} 20. Na4 {[%emt 0:03:28]} Ng4 {[%emt 0:04:12]} 21. Qd3 {[%emt 0:01:09]} h5 {[%emt 0:04:43]} 22. Nb6 {[%emt 0:00:56]} Rb8 {[%emt 0:01:27]} 23. e5 {[%emt 0:00:34]} Bd7 {[%emt 0:02:43]} 24. Bd6 {[%emt 0:00:29]} Rc8 {[%emt 0:00:06]} 25. Nxc8 {[%emt 0:00:13]} Bxc8 {[%emt 0:00:04]} 26. Bb4 {[%emt 0:01:50]} Qh4 {[%emt 0:02:01]} 27. h3 {[%emt 0:00:14]} Nh6 {[%emt 0:00:19]} 28. Be1 {[%emt 0:02:18]} Qd8 {[%emt 0:01:10]} 29. Qf3 {[%emt 0:00:47]} Nf5 {[%emt 0:01:54]} 30. Bc2 {[%emt 0:04:05]} g6 {[%emt 0:00:31]} 31. b4 {[%emt 0:04:05]} Qc7 {[%emt 0:01:42]} 32. g4 {[%emt 0:01:09]} hxg4 {[%emt 0:00:38]} 33. hxg4 {[%emt 0:00:08]} Ne7 {[%emt 0:00:29]} 34. Kg2 {[%emt 0:00:24]} Kg7 {[%emt 0:01:34]} 35. Rh1 {[%emt 0:01:15]} Rh8 {[%emt 0:00:21]} 36. Bh4 {[%emt 0:02:42]} Ng8 {[%emt 0:00:35]} 37. Rh3 {[%emt 0:03:07]} Qd7 {[%emt 0:00:42]} 38. Be4 {[%emt 0:00:19]} Kf8 {[%emt 0:00:41]} 39. Qe3 {[%emt 0:00:29]} Kg7 {[%emt 0:03:14]} 40. Rdh1 {[%emt 0:00:00]} Qe8 {[%emt 0:00:43]} 41. Qf2 {[%emt 0:02:44]} Qf8 {[%emt 0:05:01]} 42. Bf6+ {[%emt 0:03:41]} Ngxf6 {[%emt 0:00:09]} 43. exf6+ {[%emt 0:00:04]} Kg8 {[%emt 0:00:13]} 44. Qh4 {[%emt 0:00:51]} Qxb4 {[%emt 0:00:51]} 45. Qh6 {[%emt 0:01:11]} Qd2+ {[%emt 0:02:11]} 46. Kg3 {[%emt 0:00:14]} Qe3+ {[%emt 0:00:22]} 47. Bf3 {[%emt 0:00:03]} 1-0

[Event "EYCC 2017"]
[Site "Mamaia"]
[Date "2017.09.08"]
[Round "4"]
[White "Korchagina, Alena"]
[Black "Asatryan, Sona"]
[Result "1/2-1/2"]
[ECO "A05"]
[WhiteElo "2158"]
[BlackElo "2043"]
[Annotator "NA"]
[PlyCount "151"]
[EventDate "2017.??.??"]
[EventType "swiss"]
[EventCountry "ROU"]
[SourceTitle "playchess.com"]
[Source "ChessBase"]
[SourceQuality "1"]
[TimeControl "40/5400+30:1800+30"]

1. Nf3 {[%emt 0:00:00]} Nf6 {[%emt 0:00:24]} 2. c4 {[%emt 0:00:00]} b6 {[%emt 0:00:20]} 3. g3 {[%emt 0:00:23]} Bb7 {[%emt 0:00:58]} 4. Bg2 {[%emt 0:00:05]} e6 {[%emt 0:00:23]} 5. O-O {[%emt 0:00:09]} Be7 {[%emt 0:01:13]} 6. Nc3 {[%emt 0:01:04]} O-O {[%emt 0:00:00]} 7. Re1 {[%emt 0:01:45]} Ne4 {[%emt 0:02:43]} 8. Qc2 {[%emt 0:00:44]} f5 {[%emt 0:02:14]} 9. d4 {[%emt 0:02:45]} Nxc3 {[%emt 0:05:29]} 10. Qxc3 {[%emt 0:00:10]} Bf6 {[%emt 0:02:18]} 11. Qb3 {[%emt 0:06:48]} Nc6 {[%emt 0:06:55]} 12. d5 {[%emt 0:05:32]} Na5 {[%emt 0:03:45]} 13. Qd3 {[%emt 0:00:22]} c6 {[%emt 0:17:07]} 14. dxe6 {[%emt 0:15:40]} dxe6 {[%emt 0:01:06]} 15. Bd2 {[%emt 0:02:04]} c5 {[%emt 0:07:16]} 16. Bc3 {[%emt 0:12:51]} Be4 {[%emt 0:03:17]} 17. Qxd8 {[%emt 0:00:49]} Rfxd8 {[%emt 0:00:41]} 18. Bxf6 {[%emt 0:04:09]} gxf6 {[%emt 0:00:09]} 19. b3 {[%emt 0:00:12]} Rd6 {[%emt 0:03:41]} 20. Nh4 {[%emt 0:08:28]} Rad8 {[%emt 0:05:27]} 21. Bxe4 {[%emt 0:06:18]} fxe4 {[%emt 0:01:51]} 22. f3 {[%emt 0:00:07]} exf3 {[%emt 0:02:22]} 23. exf3 {[%emt 0:00:08]} Nc6 {[%emt 0:00:58]} 24. f4 {[%emt 0:11:50]} Kf7 {[%emt 0:02:44]} 25. Nf3 {[%emt 0:06:08]} Nb4 {[%emt 0:05:15]} 26. Re2 {[%emt 0:00:12]} Rd1+ {[%emt 0:04:42]} 27. Rxd1 {[%emt 0:00:06]} Rxd1+ {[%emt 0:00:03]} 28. Kg2 {[%emt 0:00:12]} Ra1 {[%emt 0:02:57]} 29. a4 {[%emt 0:01:30]} Rb1 {[%emt 0:02:03]} 30. Re3 {[%emt 0:02:52]} Rb2+ {[%emt 0:05:35]} 31. Kh3 {[%emt 0:02:32]} Ke7 {[%emt 0:02:59]} 32. g4 {[%emt 0:01:20]} Na2 {[%emt 0:02:22]} 33. f5 {[%emt 0:03:03]} e5 {[%emt 0:01:14]} 34. g5 {[%emt 0:00:47]} Nc1 {[%emt 0:01:07]} 35. g6 {[%emt 0:03:25]} hxg6 {[%emt 0:00:30]} 36. fxg6 {[%emt 0:00:01]} Nxb3 {[%emt 0:01:59]} 37. Kg4 {[%emt 0:03:09]} Rg2+ {[%emt 0:01:18]} 38. Kh3 {[%emt 0:00:28]} Rb2 {[%emt 0:00:05]} 39. Kg4 {[%emt 0:00:15]} Nd4 {[%emt 0:02:19]} 40. h4 {[%emt 0:00:00]} Rg2+ {[%emt 0:01:35]} 41. Kh5 {[%emt 0:04:14]} Nf5 {[%emt 0:04:46]} 42. Re1 {[%emt 0:03:45]} Rf2 {[%emt 0:06:12]} 43. Kg4 {[%emt 0:02:08]} Ke6 {[%emt 0:04:05]} 44. Rg1 {[%emt 0:08:33]} e4 {[%emt 0:03:38]} 45. Re1 {[%emt 0:01:34]} e3 {[%emt 0:03:32]} 46. h5 {[%emt 0:03:34]} Rg2+ {[%emt 0:04:58]} 47. Kf4 {[%emt 0:00:11]} e2 {[%emt 0:01:27]} 48. g7 {[%emt 0:03:49]} Nh6 {[%emt 0:04:08]} 49. Nd2 {[%emt 0:05:36]} Kf7 {[%emt 0:01:22]} 50. Kf3 {[%emt 0:00:36]} Rg5 {[%emt 0:00:45]} 51. Rxe2 {[%emt 0:01:34]} Rf5+ {[%emt 0:00:35]} 52. Kg3 {[%emt 0:00:45]} Rxh5 {[%emt 0:00:34]} 53. g8=Q+ {[%emt 0:01:06]} Nxg8 {[%emt 0:00:25]} 54. Ne4 {[%emt 0:00:13]} Re5 {[%emt 0:00:31]} 55. Kf4 {[%emt 0:00:14]} Ne7 {[%emt 0:00:25]} 56. Rd2 {[%emt 0:01:04]} Ng6+ {[%emt 0:00:33]} 57. Kf3 {[%emt 0:00:01]} Re7 {[%emt 0:00:49]} 58. Nd6+ {[%emt 0:00:50]} Ke6 {[%emt 0:00:04]} 59. Nb5 {[%emt 0:00:44]} Ne5+ {[%emt 0:00:27]} 60. Kf4 {[%emt 0:00:08]} Nxc4 {[%emt 0:00:20]} 61. Re2+ {[%emt 0:00:08]} Ne5 {[%emt 0:00:28]} 62. Rd2 {[%emt 0:00:43]} Rd7 {[%emt 0:00:39]} 63. Rxd7 {[%emt 0:00:19]} Nxd7 {[%emt 0:00:16]} 64. Nxa7 {[%emt 0:00:04]} Kd5 {[%emt 0:00:28]} 65. Ke3 {[%emt 0:01:16]} Kc4 {[%emt 0:00:40]} 66. Nc6 {[%emt 0:00:16]} Ne5 {[%emt 0:00:36]} 67. Ne7 {[%emt 0:00:12]} Nd3 {[%emt 0:00:46]} 68. Nc8 {[%emt 0:00:13]} Ne5 {[%emt 0:00:42]} 69. Nxb6+ {[%emt 0:00:14]} Kb3 {[%emt 0:00:22]} 70. a5 {[%emt 0:01:45]} c4 {[%emt 0:00:41]} 71. Nxc4 {[%emt 0:00:34]} Kxc4 {[%emt 0:00:06]} 72. a6 {[%emt 0:00:09]} Kd5 {[%emt 0:00:10]} 73. a7 {[%emt 0:00:09]} Nc4+ {[%emt 0:00:13]} 74. Kf4 {[%emt 0:00:04]} Nb6 {[%emt 0:00:08]} 75. Kf5 {[%emt 0:00:04]} Kd6 {[%emt 0:00:04]} 76. Kxf6 {[%emt 0:00:06] Ke5+} 1/2-1/2

[Event "EYCC 2017"]
[Site "Mamaia"]
[Date "2017.09.08"]
[Round "4"]
[White "Popov, Konstantin"]
[Black "Rozen, Eytan"]
[Result "1-0"]
[ECO "C78"]
[WhiteElo "2141"]
[BlackElo "1932"]
[Annotator "NA"]
[PlyCount "61"]
[EventDate "2017.??.??"]
[EventType "swiss"]
[EventCountry "ROU"]
[SourceTitle "playchess.com"]
[Source "ChessBase"]
[SourceQuality "1"]
[TimeControl "40/5400+30:1800+30"]

1. e4 {[%emt 0:00:00]} e5 {[%emt 0:00:17]} 2. Nf3 {[%emt 0:00:41]} Nc6 {[%emt 0:00:24]} 3. Bb5 {[%emt 0:00:31]} a6 {[%emt 0:00:25]} 4. Ba4 {[%emt 0:00:27]} Nf6 {[%emt 0:00:30]} 5. O-O {[%emt 0:00:31]} b5 {[%emt 0:01:31]} 6. Bb3 {[%emt 0:00:13]} Bc5 {[%emt 0:01:10]} 7. c3 {[%emt 0:00:19]} d6 {[%emt 0:02:06]} 8. a4 {[%emt 0:01:35]} Rb8 {[%emt 0:01:51]} 9. d4 {[%emt 0:02:55]} Bb6 {[%emt 0:02:06]} 10. Na3 {[%emt 0:08:36]} exd4 {[%emt 0:21:27]} 11. axb5 {[%emt 0:21:54]} axb5 {[%emt 0:05:23]} 12. cxd4 {[%emt 0:00:17]} b4 {[%emt 0:11:46]} 13. Nc2 {[%emt 0:08:27]} O-O {[%emt 0:04:26]} 14. Qd3 {[%emt 0:08:39]} Bg4 {[%emt 0:17:41]} 15. Ba4 {[%emt 0:12:12]} Na5 {[%emt 0:04:35]} 16. b3 {[%emt 0:07:52]} Qe7 {[%emt 0:05:06]} 17. Re1 {[%emt 0:01:53]} Bxf3 {[%emt 0:02:34]} 18. Qxf3 {[%emt 0:02:55]} c6 {[%emt 0:02:52]} 19. Bg5 {[%emt 0:01:32]} h6 {[%emt 0:00:51]} 20. Bh4 {[%emt 0:02:11]} Qe6 {[%emt 0:01:44]} 21. Rad1 {[%emt 0:00:38]} Bc7 {[%emt 0:02:37]} 22. d5 {[%emt 0:04:51]} Qg4 {[%emt 0:01:30]} 23. Bxf6 {[%emt 0:01:02]} Qxf3 {[%emt 0:00:14]} 24. gxf3 {[%emt 0:00:02]} gxf6 {[%emt 0:00:17]} 25. dxc6 {[%emt 0:00:06]} Rb6 {[%emt 0:01:59]} 26. Nd4 {[%emt 0:00:14]} Ra6 {[%emt 0:00:14]} 27. Nf5 {[%emt 0:02:55]} Kh7 {[%emt 0:02:53]} 28. Rc1 {[%emt 0:00:52]} Re8 {[%emt 0:01:19]} 29. Ne3 {[%emt 0:00:30]} Rg8+ {[%emt 0:03:17]} 30. Kh1 {[%emt 0:01:12]} Bb6 {[%emt 0:00:32]} 31. Nd5 {[%emt 0:00:08]} 1-0

[Event "EYCC 2017"]
[Site "Mamaia"]
[Date "2017.09.08"]
[Round "4"]
[White "Shafigullina, Zarina"]
[Black "Grigoryan, Arpine"]
[Result "1/2-1/2"]
[ECO "A18"]
[WhiteElo "2130"]
[BlackElo "1865"]
[Annotator "NA"]
[PlyCount "90"]
[EventDate "2017.??.??"]
[EventType "swiss"]
[EventCountry "ROU"]
[SourceTitle "playchess.com"]
[Source "ChessBase"]
[SourceQuality "1"]
[TimeControl "40/5400+30:1800+30"]

1. c4 {[%emt 0:00:00]} Nf6 {[%emt 0:00:07]} 2. Nc3 {[%emt 0:00:00]} e6 {[%emt 0:00:09]} 3. e4 {[%emt 0:00:00]} e5 {[%emt 0:06:19]} 4. Nf3 {[%emt 0:01:17]} Bb4 {[%emt 0:02:43]} 5. Qc2 {[%emt 0:02:46]} Nc6 {[%emt 0:02:39]} 6. a3 {[%emt 0:03:40]} Be7 {[%emt 0:04:18]} 7. Nd5 {[%emt 0:10:40]} O-O {[%emt 0:05:47]} 8. Bd3 {[%emt 0:03:51]} d6 {[%emt 0:01:24]} 9. h3 {[%emt 0:00:10]} Nb8 {[%emt 0:08:15]} 10. b4 {[%emt 0:02:33]} Nxd5 {[%emt 0:08:30]} 11. cxd5 {[%emt 0:01:38]} c6 {[%emt 0:00:14]} 12. Bc4 {[%emt 0:00:34]} Kh8 {[%emt 0:03:10]} 13. g4 {[%emt 0:10:24]} Nd7 {[%emt 0:07:35]} 14. Bb3 {[%emt 0:14:08]} cxd5 {[%emt 0:06:50]} 15. Bxd5 {[%emt 0:00:24]} Nb6 {[%emt 0:01:42]} 16. Bb3 {[%emt 0:03:37]} Be6 {[%emt 0:04:50]} 17. d4 {[%emt 0:04:56]} Rc8 {[%emt 0:00:48]} 18. Qd1 {[%emt 0:00:20]} Bxb3 {[%emt 0:04:38]} 19. Qxb3 {[%emt 0:00:21]} exd4 {[%emt 0:00:29]} 20. Bb2 {[%emt 0:09:41]} Bf6 {[%emt 0:00:47]} 21. Qd3 {[%emt 0:02:00]} Nc4 {[%emt 0:14:24]} 22. Bxd4 {[%emt 0:01:27]} Ne5 {[%emt 0:00:28]} 23. Bxe5 {[%emt 0:00:09]} Bxe5 {[%emt 0:00:08]} 24. Nxe5 {[%emt 0:00:47]} dxe5 {[%emt 0:00:04]} 25. Qxd8 {[%emt 0:01:07]} Rfxd8 {[%emt 0:00:05]} 26. O-O {[%emt 0:01:42]} Rd3 {[%emt 0:03:10]} 27. Kg2 {[%emt 0:00:55]} h6 {[%emt 0:03:00]} 28. Rfd1 {[%emt 0:00:06]} Rcc3 {[%emt 0:00:22]} 29. Rxd3 {[%emt 0:03:38]} Rxd3 {[%emt 0:00:05]} 30. Rc1 {[%emt 0:00:46]} Rxa3 {[%emt 0:00:33]} 31. Rc7 {[%emt 0:00:06]} f6 {[%emt 0:00:24]} 32. Rxb7 {[%emt 0:00:04]} a5 {[%emt 0:00:32]} 33. bxa5 {[%emt 0:02:53]} Rxa5 {[%emt 0:00:04]} 34. h4 {[%emt 0:01:02]} Ra4 {[%emt 0:01:13]} 35. f3 {[%emt 0:00:13]} Kh7 {[%emt 0:00:53]} 36. Kg3 {[%emt 0:00:21]} Ra2 {[%emt 0:00:49]} 37. Rb3 {[%emt 0:02:26]} Re2 {[%emt 0:00:09]} 38. Rd3 {[%emt 0:01:27]} Kg6 {[%emt 0:00:23]} 39. Rd1 {[%emt 0:00:32]} Kf7 {[%emt 0:02:05]} 40. Rd7+ {[%emt 0:00:00]} Kg6 {[%emt 0:00:04]} 41. Ra7 {[%emt 0:04:57]} Rb2 {[%emt 0:04:15]} 42. Ra1 {[%emt 0:00:06]} Kf7 {[%emt 0:00:47]} 43. Re1 {[%emt 0:00:06]} Ke6 {[%emt 0:01:50]} 44. Re3 {[%emt 0:00:16]} Rc2 {[%emt 0:03:02]} 45. Ra3 {[%emt 0:07:06]} Kf7 {[%emt 0:01:00]} 1/2-1/2

[Event "EYCC 2017"]
[Site "Mamaia"]
[Date "2017.09.08"]
[Round "4"]
[White "Ongut, Tamas Gunes"]
[Black "Krstulovic, Alex"]
[Result "0-1"]
[ECO "C72"]
[WhiteElo "2113"]
[BlackElo "2261"]
[Annotator "NA"]
[PlyCount "62"]
[EventDate "2017.??.??"]
[EventType "swiss"]
[EventCountry "ROU"]
[SourceTitle "playchess.com"]
[Source "ChessBase"]
[SourceQuality "1"]
[TimeControl "40/5400+30:1800+30"]

1. e4 {[%emt 0:00:00]} e5 {[%emt 0:00:06]} 2. Nf3 {[%emt 0:00:00]} Nc6 {[%emt 0:00:05]} 3. Bb5 {[%emt 0:00:00]} a6 {[%emt 0:00:07]} 4. Ba4 {[%emt 0:00:01]} d6 {[%emt 0:00:07]} 5. O-O {[%emt 0:00:31]} Bd7 {[%emt 0:00:59]} 6. c3 {[%emt 0:07:15]} Nf6 {[%emt 0:00:59]} 7. Re1 {[%emt 0:02:30]} g6 {[%emt 0:01:42]} 8. d4 {[%emt 0:03:39]} b5 {[%emt 0:01:04]} 9. Bb3 {[%emt 0:01:32]} Bg7 {[%emt 0:01:03]} 10. Nbd2 {[%emt 0:04:25]} O-O {[%emt 0:00:45]} 11. dxe5 {[%emt 0:05:53]} Nxe5 {[%emt 0:01:31]} 12. Nxe5 {[%emt 0:01:20]} dxe5 {[%emt 0:00:02]} 13. Qe2 {[%emt 0:00:12]} Bc6 {[%emt 0:05:53]} 14. Bc2 {[%emt 0:02:05]} Nd7 {[%emt 0:05:14]} 15. Rd1 {[%emt 0:05:11]} Qe7 {[%emt 0:03:31]} 16. Nf1 {[%emt 0:06:54]} Nb6 {[%emt 0:16:30]} 17. b3 {[%emt 0:06:18]} f5 {[%emt 0:03:44]} 18. exf5 {[%emt 0:03:37]} gxf5 {[%emt 0:00:52]} 19. Ng3 {[%emt 0:04:47]} e4 {[%emt 0:03:47]} 20. Nh5 {[%emt 0:05:41]} Nd5 {[%emt 0:12:05]} 21. Bb2 {[%emt 0:06:15]} Bxc3 {[%emt 0:03:50]} 22. Bd3 {[%emt 0:12:20]} Qf7 {[%emt 0:08:22]} 23. Bxe4 {[%emt 0:03:37]} fxe4 {[%emt 0:00:59]} 24. Rxd5 {[%emt 0:00:09]} Bxd5 {[%emt 0:00:37]} 25. Bxc3 {[%emt 0:00:09]} Qg6 {[%emt 0:01:31]} 26. Qd2 {[%emt 0:05:24]} Qxh5 {[%emt 0:01:26]} 27. Qd4 {[%emt 0:00:05]} Kf7 {[%emt 0:03:49]} 28. Qg7+ {[%emt 0:01:14]} Ke8 {[%emt 0:04:47]} 29. f3 {[%emt 0:04:40]} Qf7 {[%emt 0:03:04]} 30. Qe5+ {[%emt 0:01:06]} Qe6 {[%emt 0:00:59]} 31. Qh5+ {[%emt 0:00:16]} Kd7 {[%emt 0:00:35]} 0-1

[Event "EYCC 2017"]
[Site "Mamaia"]
[Date "2017.09.08"]
[Round "4"]
[White "Gombocz, Ferenc Jr"]
[Black "Petkov, Momchil"]
[Result "1-0"]
[ECO "A30"]
[WhiteElo "2106"]
[BlackElo "1920"]
[Annotator "NA"]
[PlyCount "105"]
[EventDate "2017.??.??"]
[EventType "swiss"]
[EventCountry "ROU"]
[SourceTitle "playchess.com"]
[Source "ChessBase"]
[SourceQuality "1"]
[TimeControl "40/5400+30:1800+30"]

1. c4 {[%emt 0:00:00]} c5 {[%emt 0:00:04]} 2. g3 {[%emt 0:00:00]} Nf6 {[%emt 0:00:33]} 3. Bg2 {[%emt 0:00:03]} e6 {[%emt 0:01:14]} 4. Nf3 {[%emt 0:01:21]} Nc6 {[%emt 0:05:13]} 5. O-O {[%emt 0:03:25]} Be7 {[%emt 0:00:05]} 6. Nc3 {[%emt 0:02:47]} O-O {[%emt 0:01:10]} 7. d4 {[%emt 0:00:42]} cxd4 {[%emt 0:00:30]} 8. Nxd4 {[%emt 0:00:13]} a6 {[%emt 0:01:36]} 9. Bf4 {[%emt 0:05:50]} Nxd4 {[%emt 0:08:08]} 10. Qxd4 {[%emt 0:00:08]} d6 {[%emt 0:00:10]} 11. Qd2 {[%emt 0:00:58]} Qc7 {[%emt 0:07:42]} 12. Rfd1 {[%emt 0:07:48]} Rd8 {[%emt 0:13:58]} 13. Rac1 {[%emt 0:04:17]} e5 {[%emt 0:19:32]} 14. Bg5 {[%emt 0:05:23]} Be6 {[%emt 0:02:47]} 15. Nd5 {[%emt 0:03:38]} Bxd5 {[%emt 0:00:40]} 16. cxd5 {[%emt 0:00:30]} Qd7 {[%emt 0:00:56]} 17. Rc2 {[%emt 0:07:48]} Rdc8 {[%emt 0:00:44]} 18. Rdc1 {[%emt 0:00:46]} Rxc2 {[%emt 0:09:19]} 19. Qxc2 {[%emt 0:00:22]} Nxd5 {[%emt 0:01:00]} 20. Bd2 {[%emt 0:05:05]} Nf6 {[%emt 0:08:29]} 21. Qc7 {[%emt 0:02:20]} Bf8 {[%emt 0:06:33]} 22. Qxd7 {[%emt 0:02:11]} Nxd7 {[%emt 0:00:05]} 23. Rc7 {[%emt 0:00:10]} Nc5 {[%emt 0:01:50]} 24. b4 {[%emt 0:00:15]} Ne6 {[%emt 0:00:14]} 25. Rxb7 {[%emt 0:01:17]} Rc8 {[%emt 0:02:02]} 26. Be4 {[%emt 0:01:15]} a5 {[%emt 0:01:47]} 27. bxa5 {[%emt 0:00:24]} Nc5 {[%emt 0:02:50]} 28. Rb4 {[%emt 0:00:09]} Nxe4 {[%emt 0:00:41]} 29. Rxe4 {[%emt 0:00:11]} Ra8 {[%emt 0:03:51]} 30. Rc4 {[%emt 0:00:31]} Ra6 {[%emt 0:00:47]} 31. Rc8 {[%emt 0:00:22]} f6 {[%emt 0:00:45]} 32. e4 {[%emt 0:00:51]} Kf7 {[%emt 0:00:12]} 33. Kf1 {[%emt 0:00:27]} Be7 {[%emt 0:00:15]} 34. Ke2 {[%emt 0:00:15]} Ke6 {[%emt 0:00:29]} 35. Kd3 {[%emt 0:00:10]} Kd7 {[%emt 0:01:03]} 36. Rg8 {[%emt 0:00:19]} Bd8 {[%emt 0:00:39]} 37. Kc4 {[%emt 0:02:31]} Rc6+ {[%emt 0:00:10]} 38. Kb3 {[%emt 0:00:08]} Ra6 39. Rxg7+ {[%emt 0:00:18]} Kc6 {[%emt 0:01:21]} 40. Ka4 {[%emt 0:00:00]} h5 {[%emt 0:00:16]} 41. f3 {[%emt 0:02:13]} Bc7 {[%emt 0:02:06]} 42. h4 {[%emt 0:00:22]} Ra8 {[%emt 0:00:08]} 43. g4 {[%emt 0:01:13]} Rh8 {[%emt 0:00:23]} 44. Be1 {[%emt 0:00:58]} hxg4 {[%emt 0:02:02]} 45. fxg4 {[%emt 0:00:09]} Rb8 {[%emt 0:00:07]} 46. Bb4 {[%emt 0:01:24]} Rd8 {[%emt 0:01:35]} 47. h5 {[%emt 0:00:16]} d5 {[%emt 0:01:01]} 48. exd5+ {[%emt 0:00:21]} Rxd5 {[%emt 0:00:03]} 49. h6 {[%emt 0:00:08]} Rd8 {[%emt 0:05:54]} 50. h7 {[%emt 0:00:09]} Rh8 {[%emt 0:00:03]} 51. a6 {[%emt 0:00:11]} e4 {[%emt 0:00:44]} 52. a7 {[%emt 0:00:14]} f5 {[%emt 0:05:22]} 53. Rg8 {[%emt 0:00:10]} 1-0

[Event "EYCC 2017"]
[Site "Mamaia"]
[Date "2017.09.08"]
[Round "4"]
[White "Mammadov, Sadig"]
[Black "Katopodis, Dimitrios"]
[Result "1-0"]
[ECO "C65"]
[WhiteElo "2099"]
[BlackElo "2210"]
[Annotator "NA"]
[PlyCount "105"]
[EventDate "2017.??.??"]
[EventType "swiss"]
[EventCountry "ROU"]
[SourceTitle "playchess.com"]
[Source "ChessBase"]
[SourceQuality "1"]
[TimeControl "40/5400+30:1800+30"]

1. e4 {[%emt 0:00:00]} e5 {[%emt 0:00:08]} 2. Nf3 {[%emt 0:00:00]} Nc6 {[%emt 0:00:12]} 3. Bb5 {[%emt 0:00:00]} Nf6 {[%emt 0:03:11]} 4. d3 {[%emt 0:00:00]} Bc5 {[%emt 0:00:30]} 5. O-O {[%emt 0:00:35]} Nd4 {[%emt 0:01:00]} 6. Nxd4 {[%emt 0:00:19]} Bxd4 {[%emt 0:00:20]} 7. c3 {[%emt 0:00:26]} Bb6 {[%emt 0:00:29]} 8. Nd2 {[%emt 0:02:12]} c6 {[%emt 0:01:25]} 9. Ba4 {[%emt 0:00:14]} O-O {[%emt 0:01:31]} 10. Nc4 {[%emt 0:05:41]} Bc7 {[%emt 0:01:28]} 11. Bc2 {[%emt 0:00:07]} d5 {[%emt 0:02:07]} 12. Ne3 {[%emt 0:00:32]} Be6 {[%emt 0:09:58]} 13. Qf3 {[%emt 0:02:48]} Qd7 {[%emt 0:04:39]} 14. h3 {[%emt 0:01:10]} d4 {[%emt 0:12:25]} 15. Nf5 {[%emt 0:03:09]} Bxf5 {[%emt 0:03:20]} 16. exf5 {[%emt 0:02:49]} Nd5 {[%emt 0:12:35]} 17. Re1 {[%emt 0:11:46]} dxc3 {[%emt 0:04:37]} 18. bxc3 {[%emt 0:01:08]} Ba5 {[%emt 0:09:45]} 19. Bb2 {[%emt 0:00:34]} Bxc3 {[%emt 0:02:41]} 20. Bxc3 {[%emt 0:01:02]} Nxc3 {[%emt 0:00:07]} 21. f6 {[%emt 0:11:10]} g6 {[%emt 0:10:30]} 22. Rxe5 {[%emt 0:08:05]} Nd5 {[%emt 0:06:16]} 23. Rae1 {[%emt 0:01:52]} Qd6 {[%emt 0:01:41]} 24. Bb3 {[%emt 0:00:25]} Nxf6 {[%emt 0:01:00]} 25. Re7 {[%emt 0:06:05]} Rab8 {[%emt 0:02:09]} 26. Qe3 {[%emt 0:07:05]} Nd5 {[%emt 0:02:43]} 27. Qd4 {[%emt 0:01:02]} Qxe7 {[%emt 0:01:50]} 28. Rxe7 {[%emt 0:00:03]} Nxe7 {[%emt 0:00:12]} 29. Qxa7 {[%emt 0:02:18]} Rfd8 {[%emt 0:00:53]} 30. h4 {[%emt 0:00:34]} h5 {[%emt 0:00:29]} 31. f3 {[%emt 0:05:33]} Nf5 {[%emt 0:00:30]} 32. Kf2 {[%emt 0:00:30]} Nd4 {[%emt 0:00:30]} 33. Bc4 {[%emt 0:00:30]} Nb5 {[%emt 0:00:30]} 34. Qc5 {[%emt 0:00:30]} Nd6 {[%emt 0:00:30]} 35. Bb3 {[%emt 0:00:30]} Rd7 {[%emt 0:00:30]} 36. g4 {[%emt 0:00:30]} hxg4 {[%emt 0:00:30]} 37. fxg4 {[%emt 0:00:30]} Re8 {[%emt 0:00:30]} 38. h5 {[%emt 0:00:30]} Kh7 {[%emt 0:00:30]} 39. a4 {[%emt 0:25:49]} Ree7 {[%emt 0:04:59]} 40. Qg5 {[%emt 0:00:00]} Re8 {[%emt 0:00:46]} 41. Qf6 {[%emt 0:05:24]} c5 {[%emt 0:12:31]} 42. g5 {[%emt 0:15:36]} Ree7 {[%emt 0:08:47]} 43. a5 {[%emt 0:05:13]} Ne8 {[%emt 0:05:39]} 44. hxg6+ {[%emt 0:01:33]} fxg6 {[%emt 0:02:23]} 45. Qf8 {[%emt 0:00:37]} Rg7 {[%emt 0:00:10]} 46. Qxe8 {[%emt 0:01:12]} Rxd3 {[%emt 0:00:14]} 47. Bc4 {[%emt 0:01:03]} Rd4 {[%emt 0:00:24]} 48. Qe6 {[%emt 0:00:37]} Rf4+ {[%emt 0:00:37]} 49. Kg3 {[%emt 0:00:31]} Rf5 {[%emt 0:00:06]} 50. Kg4 {[%emt 0:00:29]} Rf2 {[%emt 0:01:55]} 51. Qd5 {[%emt 0:01:28]} Rh2 {[%emt 0:00:18]} 52. Kg3 {[%emt 0:00:33]} Rh5 {[%emt 0:00:38]} 53. Be2 {[%emt 0:01:45]} 1-0

[Event "EYCC 2017"]
[Site "Mamaia"]
[Date "2017.09.08"]
[Round "4"]
[White "Tsaruk, Maksim"]
[Black "Radojicic, Aleksandar M"]
[Result "1/2-1/2"]
[ECO "B23"]
[WhiteElo "2060"]
[BlackElo "1909"]
[Annotator "NA"]
[PlyCount "51"]
[EventDate "2017.??.??"]
[EventType "swiss"]
[EventCountry "ROU"]
[SourceTitle "playchess.com"]
[Source "ChessBase"]
[SourceQuality "1"]
[TimeControl "40/5400+30:1800+30"]

1. e4 {[%emt 0:00:00]} c5 {[%emt 0:01:09]} 2. Nc3 {[%emt 0:00:00]} a6 {[%emt 0:01:02]} 3. a4 {[%emt 0:01:52]} Nc6 {[%emt 0:01:40]} 4. g3 {[%emt 0:00:10]} g6 {[%emt 0:02:43]} 5. Bg2 {[%emt 0:00:05]} Bg7 {[%emt 0:01:01]} 6. Nge2 {[%emt 0:00:33]} d6 {[%emt 0:03:28]} 7. d3 {[%emt 0:00:28]} e6 {[%emt 0:01:27]} 8. Be3 {[%emt 0:03:19]} Nd4 {[%emt 0:01:10]} 9. O-O {[%emt 0:09:25]} Ne7 {[%emt 0:08:16]} 10. f4 {[%emt 0:14:32]} Rb8 {[%emt 0:17:18]} 11. Bxd4 {[%emt 0:34:24]} cxd4 {[%emt 0:03:28]} 12. Nb1 {[%emt 0:00:06]} O-O {[%emt 0:04:38]} 13. Nd2 {[%emt 0:00:22]} Qc7 {[%emt 0:11:12]} 14. Nf3 {[%emt 0:10:58]} Nc6 {[%emt 0:01:58]} 15. Kh1 {[%emt 0:01:57]} e5 {[%emt 0:03:40]} 16. c3 {[%emt 0:00:22]} Qb6 {[%emt 0:05:03]} 17. cxd4 {[%emt 0:04:05]} exd4 {[%emt 0:03:24]} 18. Qd2 {[%emt 0:08:21]} h6 {[%emt 0:05:09]} 19. Ne1 {[%emt 0:04:34]} Na5 {[%emt 0:02:36]} 20. Nc1 {[%emt 0:00:01]} f5 {[%emt 0:01:48]} 21. b4 {[%emt 0:01:07]} Nc6 {[%emt 0:00:27]} 22. Rb1 {[%emt 0:01:29]} Be6 {[%emt 0:01:08]} 23. Nc2 {[%emt 0:00:27]} Rfd8 {[%emt 0:04:23]} 24. Ne2 {[%emt 0:01:11]} Kh7 {[%emt 0:03:22]} 25. Rfc1 {[%emt 0:01:05]} Rdc8 {[%emt 0:00:08]} 26. Na3 {[%emt 0:01:19]} 1/2-1/2